bitfinex/quotes_BTCUSD_20260215
["timestamp","ask_amount","ask_price","bid_price","bid_amount"]
[1771122706820,0.02522532,69440.0,69439.0,1e-08]
[1771122707019,0.00043558,69440.0,69439.0,1e-08]
[1771122708529,0.07244018,69440.0,69439.0,1e-08]
[1771122708930,0.00043558,69440.0,69439.0,1e-08]
[1771122709539,0.00043558,69440.0,69439.0,0.00020001]
[1771122709763,0.34472,69446.0,69439.0,3.35e-05]
[1771122709960,0.00012,69450.0,69440.0,0.02328417]
[1771122710132,0.07199944,69445.0,69440.0,0.09809811]
[1771122710338,0.07199672,69448.0,69441.0,0.02328417]
[1771122710640,0.07199838,69446.0,69441.0,0.02328417]
[1771122710836,0.07199672,69448.0,69441.0,0.02328417]
[1771122710837,0.34484,69450.0,69441.0,0.02328417]
[1771122711051,0.41683446,69450.0,69443.0,0.02079021]
[1771122711453,0.02478974,69449.0,69439.0,0.00016428]
[1771122711649,0.07200231,69443.0,69439.0,0.00016428]
[1771122711847,0.07200275,69442.0,69439.0,0.00016428]
[1771122712082,0.07200154,69443.0,69439.0,0.00016428]
[1771122712854,0.28794298,69459.0,69443.0,0.02328417]
[1771122713055,0.34488,69460.0,69442.0,0.09809811]
[1771122713056,0.07199066,69454.0,69446.0,0.09528231]
[1771122713280,4e-05,69452.0,69446.0,0.02328417]
[1771122714173,4e-05,69452.0,69446.0,0.0182835]
[1771122714541,4e-05,69452.0,69441.0,0.02328417]
[1771122714842,0.07199455,69450.0,69442.0,0.07200248]
[1771122715612,4e-05,69452.0,69441.0,0.02328417]
[1771122715969,0.07199813,69447.0,69441.0,0.02328417]
[1771122716366,0.07199982,69445.0,69440.0,0.00016]
[1771122716571,0.07199923,69446.0,69440.0,0.00016]
[1771122716799,0.02478974,69450.0,69440.0,0.00016]
[1771122717420,0.02478974,69449.0,69438.0,4e-05]
[1771122717593,0.07200275,69442.0,69438.0,0.00015929]
[1771122718203,0.07200159,69443.0,69438.0,0.00015929]
[1771122718402,0.07200059,69444.0,69438.0,0.00015929]
[1771122720785,0.34472,69449.0,69438.0,0.00015929]
[1771122720958,0.07215501,69450.0,69442.0,0.07200173]
[1771122720959,0.34488,69450.0,69442.0,0.07200173]
[1771122721941,0.07199544,69449.0,69441.0,0.07200331]
[1771122722547,0.07215436,69450.0,69442.0,0.07200224]
[1771122723177,0.34476,69452.0,69446.0,0.07199746]
[1771122723378,0.34476,69452.0,69447.0,0.09528146]
[1771122723560,0.34476,69452.0,69447.0,0.02328417]
[1771122723736,4e-05,69452.0,69447.0,0.0719971]
[1771122723948,4e-05,69452.0,69448.0,0.02328417]
[1771122725424,4e-05,69452.0,69442.0,0.0002]
[1771122725628,0.0004,69450.0,69447.0,0.02328417]
[1771122726072,0.0004,69450.0,69445.0,0.07199866]
[1771122726403,0.0004,69450.0,69446.0,0.02328417]
[1771122727275,0.0004,69457.0,69453.0,0.07199113]
[1771122727474,0.0004,69457.0,69451.0,0.0719932]
[1771122727684,4e-05,69462.0,69459.0,0.07198491]
[1771122727899,0.0004,69465.0,69452.0,4e-05]
[1771122728112,0.0004,69465.0,69456.0,0.09809811]
[1771122728327,4e-05,69464.0,69461.0,0.07182217]
[1771122728546,4e-05,69464.0,69458.0,0.28794261]
[1771122728762,4e-05,69464.0,69461.0,0.07198238]
[1771122728966,4e-05,69464.0,69459.0,0.07198491]
[1771122729184,4e-05,69464.0,69456.0,0.37225903]
[1771122729379,4e-05,69464.0,69461.0,0.0719825]
[1771122729531,4e-05,69464.0,69459.0,0.07198402]
[1771122730069,4e-05,69464.0,69460.0,0.07198365]
[1771122730444,4e-05,69464.0,69459.0,0.07198463]
[1771122730777,4e-05,69464.0,69457.0,0.07198698]
[1771122730981,4e-05,69464.0,69458.0,0.0719856]
[1771122731219,4e-05,69464.0,69461.0,0.07181539]
[1771122731548,4e-05,69464.0,69457.0,0.07198698]
[1771122732519,4e-05,69464.0,69458.0,0.07198594]
[1771122732917,4e-05,69464.0,69459.0,0.0719847]
[1771122734179,0.00044,69464.0,69459.0,0.0719847]
[1771122734991,0.00044,69464.0,69458.0,0.07198388]
[1771122735372,0.00044,69464.0,69459.0,0.07198469]
[1771122736524,0.00044,69464.0,69460.0,0.07198323]
[1771122737172,0.00033303,69463.0,69460.0,0.07198323]
[1771122737595,0.00033303,69463.0,69459.0,0.07198469]
[1771122737809,0.00024535,69463.0,69458.0,0.07198562]
[1771122738010,0.00024535,69463.0,69459.0,0.07198481]
[1771122738267,0.00024535,69463.0,69456.0,0.3112321]
[1771122738473,0.00024535,69463.0,69460.0,0.07198284]
[1771122739050,0.00024535,69463.0,69461.0,0.07198274]
[1771122739438,4e-05,69466.0,69459.0,0.04023316]
[1771122740083,4e-05,69466.0,69460.0,0.07198315]
[1771122740453,4e-05,69466.0,69461.0,0.07198187]
[1771122740655,4e-05,69466.0,69459.0,0.02421422]
[1771122740656,0.0004,69471.0,69460.0,0.09936352]
[1771122740853,0.0004,69471.0,69461.0,0.28792943]
[1771122741187,0.0004,69471.0,69463.0,0.07198076]
[1771122741409,0.0004,69471.0,69464.0,0.07197953]
[1771122741610,0.0004,69471.0,69468.0,0.0719754]
[1771122742043,0.0004,69471.0,69467.0,0.07197634]
[1771122742273,0.0004,69471.0,69464.0,0.31212971]
[1771122742512,0.0004,69471.0,69469.0,0.07197413]
[1771122742733,0.0004,69479.0,69469.0,0.07197413]
[1771122742937,0.07196821,69476.0,69469.0,0.07197413]
[1771122743151,0.07196821,69476.0,69469.0,0.07180771]
[1771122743373,4e-05,69470.0,69469.0,0.19522545]
[1771122744137,4e-05,69470.0,69469.0,0.09598193]
[1771122744634,4e-05,69470.0,69469.0,0.19522545]
[1771122746213,4e-05,69470.0,69469.0,0.19622545]
[1771122746425,1e-08,69476.0,69475.0,0.07196833]
[1771122746638,4e-05,69484.0,69474.0,0.38711758]
[1771122746841,4e-05,69484.0,69481.0,0.07196211]
[1771122747051,4e-05,69484.0,69474.0,0.09924352]
[1771122747052,4e-05,69484.0,69483.0,0.07196004]
[1771122749149,0.0004,69485.0,69483.0,0.07196004]
[1771122750081,0.0004,69485.0,69484.0,0.07195901]
[1771122750300,0.02373041,69475.0,69464.0,4e-05]
[1771122750475,0.09570411,69470.0,69464.0,0.00017066]
[1771122750673,0.02373041,69469.0,69464.0,0.00017066]
[1771122751452,0.09570509,69469.0,69464.0,0.00013066]
[1771122751779,0.07197021,69474.0,69464.0,0.00013066]
[1771122752176,0.07197052,69473.0,69465.0,0.07197784]
[1771122754456,0.02373041,69475.0,69464.0,0.07211023]
[1771122754660,0.02373041,69475.0,69464.0,0.00013066]
[1771122754661,0.07197664,69467.0,69464.0,0.00013066]
[1771122754916,0.09570705,69467.0,69464.0,0.00013066]
[1771122755702,0.02373041,69467.0,69464.0,0.00013066]
[1771122756095,0.07197508,69469.0,69464.0,0.00013066]
[1771122756406,0.09570549,69469.0,69465.0,0.001]
[1771122756633,0.09570549,69469.0,69464.0,0.00013066]
[1771122756831,0.0719757,69468.0,69464.0,0.00013066]
[1771122757104,0.0719757,69468.0,69464.0,0.00113066]
[1771122757329,0.0719757,69468.0,69464.0,0.00013066]
[1771122758355,0.0720157,69468.0,69464.0,9.066e-05]
[1771122759060,4e-05,69468.0,69464.0,0.00029066]
[1771122759801,0.07201593,69468.0,69464.0,0.00029066]
[1771122762551,4e-05,69468.0,69464.0,0.00029066]
[1771122764083,0.02379525,69477.0,69466.0,4e-05]
[1771122764291,0.0004,69485.0,69476.0,0.02264759]
[1771122764482,0.07235848,69485.0,69478.0,0.07196458]
[1771122764773,0.07235848,69485.0,69476.0,0.02943231]
[1771122764920,0.0004,69485.0,69472.0,0.01625843]
[1771122765126,0.07196301,69481.0,69474.0,0.07196919]
[1771122767496,0.02379525,69483.0,69472.0,4e-05]
[1771122767702,0.09512286,69485.0,69472.0,0.07201135]
[1771122767703,0.09576027,69479.0,69472.0,0.07201135]
[1771122768526,0.09576027,69479.0,69473.0,0.07197039]
[1771122768730,0.02379525,69479.0,69473.0,0.07197039]
[1771122769093,0.07196353,69480.0,69473.0,0.07197039]
[1771122769094,0.02419525,69478.0,69473.0,0.07197039]
[1771122769280,0.02419525,69478.0,69472.0,0.07201135]
[1771122769675,0.02419525,69478.0,69472.0,4e-05]
[1771122770691,0.09616136,69478.0,69472.0,4e-05]
[1771122771760,0.00044,69484.0,69479.0,0.07196317]
[1771122772028,0.00044,69484.0,69478.0,0.0719651]
[1771122772815,0.00044,69484.0,69479.0,0.07196374]
[1771122773128,0.00044,69484.0,69478.0,0.0719651]
[1771122773330,4e-05,69480.0,69478.0,0.0718451]
[1771122777901,0.09472286,69477.0,69460.0,0.00016]
[1771122778071,0.09472286,69465.0,69454.0,0.0002535]
[1771122778387,0.07198593,69459.0,69454.0,0.0002535]
[1771122778535,0.31171577,69464.0,69454.0,0.0002535]
[1771122778741,0.07198489,69460.0,69454.0,0.0002535]
[1771122779147,0.0719854,69459.0,69454.0,0.0002535]
[1771122779357,0.0719861,69458.0,69454.0,0.0002535]
[1771122779614,0.07198864,69456.0,69446.0,0.16504049]
[1771122779762,0.07198864,69456.0,69447.0,0.02264759]
[1771122779960,0.07199001,69455.0,69447.0,0.02264759]
[1771122780576,0.38277862,69460.0,69446.0,0.0002]
[1771122780776,0.09472286,69457.0,69446.0,0.00031929]
[1771122781114,0.07199554,69449.0,69446.0,0.00031929]
[1771122781419,0.07199113,69453.0,69446.0,0.00031929]
[1771122782220,0.07199113,69453.0,69446.0,0.00131929]
[1771122782441,0.07199332,69451.0,69446.0,0.00031929]
[1771122782756,0.07199332,69451.0,69446.0,0.00331929]
[1771122782924,0.07199653,69448.0,69446.0,0.00331929]
[1771122783305,0.02379525,69454.0,69446.0,0.00331929]
[1771122783507,0.07199113,69453.0,69446.0,0.00331929]
[1771122783707,0.07199469,69450.0,69446.0,0.00331929]
[1771122783959,0.07199258,69452.0,69446.0,0.00031929]
[1771122784336,0.07199322,69451.0,69446.0,0.00031929]
[1771122784537,0.28793547,69461.0,69446.0,0.00031929]
[1771122784538,0.02383525,69464.0,69447.0,0.0928425]
[1771122784887,0.07199011,69454.0,69448.0,0.02264759]
[1771122786321,0.07199012,69454.0,69448.0,0.02264759]
[1771122786710,0.07199485,69450.0,69446.0,0.00031929]
[1771122787159,0.07199485,69450.0,69448.0,0.007]
[1771122787369,0.07199527,69449.0,69448.0,0.007]
[1771122787530,0.071998,69447.0,69444.0,0.0001903]
[1771122787742,0.07199879,69446.0,69444.0,0.0001903]
[1771122787962,0.07199838,69446.0,69444.0,0.0001903]
[1771122788678,0.07199942,69445.0,69440.0,0.00012]
[1771122788880,0.07200652,69439.0,69432.0,0.0002]
[1771122789018,0.07200572,69439.0,69432.0,0.0002]
[1771122789241,0.02379525,69441.0,69432.0,0.0002]
[1771122789448,0.07200627,69439.0,69432.0,0.0002]
[1771122789672,0.07200117,69444.0,69432.0,0.0930425]
[1771122789876,0.07200117,69444.0,69437.0,0.07200771]
[1771122790050,0.07200117,69444.0,69436.0,0.07200856]
[1771122790512,0.07199813,69447.0,69444.0,0.001]
[1771122790691,0.07199939,69446.0,69438.0,0.07200632]
[1771122790911,0.07199958,69445.0,69438.0,0.07200632]
[1771122791242,0.07200046,69444.0,69436.0,0.07400875]
[1771122791540,0.07200217,69443.0,69435.0,0.07200947]
[1771122791935,0.07200257,69442.0,69435.0,0.07200947]
[1771122792461,0.07200257,69442.0,69433.0,0.02264759]
[1771122792735,0.07200257,69442.0,69432.0,0.0930425]
[1771122792736,0.28801013,69443.0,69432.0,0.0002]
[1771122792887,4e-05,69448.0,69432.0,0.0002]
[1771122792888,0.07200672,69438.0,69432.0,0.0002]
[1771122793305,0.02379525,69439.0,69436.0,0.004]
[1771122793494,0.07200771,69437.0,69432.0,0.0002]
[1771122793867,0.07200668,69438.0,69432.0,0.0002]
[1771122793868,0.07200674,69438.0,69432.0,0.0002]
[1771122794196,0.07200795,69437.0,69432.0,0.0002]
[1771122794434,0.07200795,69437.0,69436.0,0.001]
[1771122794631,0.06521869,69437.0,69432.0,0.0002]
[1771122795034,0.06521869,69437.0,69432.0,0.0102]
[1771122795252,0.02340354,69448.0,69432.0,0.0102]
[1771122795459,0.07200324,69442.0,69435.0,0.07200942]
[1771122796801,0.07200362,69441.0,69434.0,0.07201046]
[1771122797177,0.07200362,69441.0,69435.0,0.005]
[1771122797344,0.07200362,69441.0,69434.0,0.07201046]
[1771122797751,0.07200362,69441.0,69435.0,0.005]
[1771122797956,0.07200324,69443.0,69435.0,0.07700926]
[1771122798172,0.07199843,69446.0,69438.0,0.07200588]
[1771122798365,0.07199814,69447.0,69434.0,0.19064967]
[1771122798565,0.18321784,69456.0,69432.0,0.0002]
[1771122798566,1e-08,69450.0,69443.0,0.07200149]
[1771122798766,4e-05,69456.0,69443.0,0.11863988]
[1771122799009,0.07199401,69451.0,69443.0,0.07200146]
[1771122799191,0.07199255,69452.0,69443.0,0.07200146]
[1771122799564,0.07199255,69452.0,69443.0,0.07300146]
[1771122799968,0.07199255,69452.0,69443.0,0.07200146]
[1771122800447,0.07199255,69452.0,69445.0,0.07199921]
[1771122800682,0.09097784,69453.0,69443.0,0.004]
[1771122800889,0.0953597,69449.0,69443.0,0.004]
[1771122801298,0.07199635,69448.0,69442.0,4e-05]
[1771122803107,0.07199635,69448.0,69440.0,0.07216254]
[1771122803266,4e-05,69444.0,69443.0,0.001]
[1771122803469,4e-05,69444.0,69441.0,0.07200288]
[1771122803666,4e-05,69444.0,69442.0,0.002]
[1771122803871,0.07200149,69443.0,69440.0,0.00016]
[1771122804071,4e-05,69444.0,69438.0,4e-05]
[1771122804072,0.07200357,69441.0,69438.0,4e-05]
[1771122804291,0.02336354,69440.0,69438.0,4e-05]
[1771122804487,0.0953685,69440.0,69438.0,4e-05]
[1771122805213,0.02336354,69439.0,69438.0,4e-05]
[1771122805455,0.07200668,69438.0,69432.0,0.0002]
[1771122805737,0.11434138,69439.0,69432.0,0.0002]
[1771122805738,0.07201181,69434.0,69432.0,0.0002]
[1771122806315,0.07200723,69438.0,69432.0,0.0002]
[1771122806917,0.07210129,69438.0,69432.0,0.0002]
[1771122807119,0.007,69434.0,69432.0,0.0002]
[1771122807316,9.406e-05,69438.0,69432.0,0.0002]
[1771122807721,0.00509406,69438.0,69432.0,0.07221274]
[1771122808342,9.406e-05,69438.0,69432.0,0.07221274]
[1771122809130,9.406e-05,69438.0,69432.0,0.0002]
[1771122809131,0.07210077,69438.0,69432.0,0.0002]
[1771122810171,9.406e-05,69438.0,69432.0,0.0002]
[1771122810680,9.406e-05,69438.0,69433.0,0.07201166]
[1771122811425,9.406e-05,69438.0,69432.0,0.07221262]
[1771122811973,0.07210088,69438.0,69432.0,0.0002]
[1771122812497,0.0720095,69436.0,69432.0,0.0002]
[1771122812823,0.09537304,69436.0,69432.0,0.0002]
[1771122813028,0.07200993,69435.0,69433.0,0.001]
[1771122813281,0.07201101,69434.0,69432.0,0.0002]
[1771122813485,0.09537644,69432.0,69430.0,1e-08]
[1771122813814,0.07201394,69431.0,69430.0,1e-08]
[1771122815708,0.10337644,69432.0,69419.0,5e-05]
[1771122815709,0.008,69432.0,69419.0,5e-05]
[1771122815975,0.008,69432.0,69400.0,0.00012]
[1771122815976,0.02336354,69428.0,69400.0,0.00012]
[1771122816117,0.09097784,69417.0,69400.0,0.00012]
[1771122816323,0.02336354,69412.0,69402.0,0.07204401]
[1771122816544,0.09097784,69418.0,69403.0,0.07204291]
[1771122816745,0.44019627,69413.0,69400.0,0.3628195]
[1771122817088,0.44019627,69413.0,69401.0,0.07237118]
[1771122817089,0.02336354,69413.0,69401.0,0.07237118]
[1771122817250,0.01,69417.0,69407.0,0.07203855]
[1771122817431,0.00012,69420.0,69413.0,0.07203203]
[1771122817623,0.07201819,69427.0,69417.0,0.07202842]
[1771122817820,0.20937601,69429.0,69418.0,0.07202735]
[1771122818016,0.13736,69429.0,69419.0,0.29065354]
[1771122818263,0.13736,69429.0,69417.0,0.00032611]
[1771122818439,0.0002061,69432.0,69419.0,0.29065354]
[1771122818797,0.0002061,69432.0,69425.0,0.07201931]
[1771122818935,0.0002061,69432.0,69420.0,0.00012]
[1771122819321,0.07202034,69425.0,69420.0,0.00012]
[1771122819583,0.09538579,69423.0,69420.0,0.00012]
[1771122819784,0.07201923,69426.0,69420.0,0.00012]
[1771122819998,0.07202047,69425.0,69420.0,0.00055558]
[1771122820218,0.07202047,69425.0,69420.0,0.00255558]
[1771122820427,0.07202047,69425.0,69420.0,0.00055558]
[1771122820629,0.02336354,69424.0,69420.0,0.00055558]
[1771122820859,0.0002061,69432.0,69422.0,0.07202327]
[1771122821058,0.07221908,69432.0,69422.0,0.07202327]
[1771122821543,0.07221908,69432.0,69423.0,0.07202199]
[1771122821898,0.09505356,69432.0,69423.0,0.07202199]
[1771122822101,0.0002061,69432.0,69421.0,0.00032611]
[1771122822346,0.0002061,69432.0,69427.0,0.07201808]
[1771122822662,0.0002061,69432.0,69426.0,0.07201809]
[1771122823010,0.06993455,69436.0,69427.0,0.00032611]
[1771122823226,0.02332674,69437.0,69427.0,0.07234402]
[1771122823424,0.02332674,69437.0,69427.0,0.08434402]
[1771122823604,0.02332674,69437.0,69427.0,0.00132611]
[1771122823803,0.07200786,69437.0,69428.0,0.07201605]
[1771122824004,0.07200786,69437.0,69429.0,0.07201598]
[1771122824242,0.10370897,69439.0,69427.0,0.00132611]
[1771122824446,0.10370897,69439.0,69436.0,0.07200871]
[1771122824623,0.10370897,69439.0,69430.0,0.2880569]
[1771122824955,0.10370897,69439.0,69427.0,0.40656257]
[1771122824956,0.10370897,69439.0,69431.0,0.07201297]
[1771122825281,0.10370897,69439.0,69429.0,0.29064231]
[1771122825437,0.10370897,69439.0,69436.0,0.0720081]
[1771122825816,0.10370897,69439.0,69437.0,0.07200673]
[1771122826020,0.10370897,69439.0,69434.0,0.07201046]
[1771122826021,0.10370897,69439.0,69436.0,0.07200871]
[1771122826215,0.10370897,69439.0,69437.0,0.0720074]
[1771122826403,0.01563454,69439.0,69438.0,0.07200668]
[1771122826601,4e-05,69444.0,69441.0,0.07200342]
[1771122826825,0.02336674,69446.0,69439.0,0.00032611]
[1771122826826,4e-05,69446.0,69439.0,0.00032611]
[1771122827026,4e-05,69446.0,69436.0,0.0327167]
[1771122827227,0.0002005,69449.0,69438.0,0.0247167]
[1771122827559,0.0002005,69449.0,69446.0,0.0719983]
[1771122827904,0.00044,69452.0,69444.0,0.07200046]
[1771122828073,0.07243242,69452.0,69445.0,0.00032611]
[1771122828416,0.07199337,69451.0,69445.0,0.00032611]
[1771122828620,0.00044,69452.0,69445.0,0.00032611]
[1771122828843,0.0004,69446.0,69445.0,0.07232553]
[1771122829047,0.0004,69446.0,69445.0,0.07199942]
[1771122830558,0.00044,69452.0,69440.0,0.11475415]
[1771122830756,0.00044,69452.0,69449.0,0.07199511]
[1771122830972,0.00044,69452.0,69448.0,0.07199625]
[1771122833135,0.00044,69452.0,69449.0,0.004]
[1771122833340,0.00044,69452.0,69448.0,0.07232236]
[1771122833536,0.00044,69452.0,69448.0,0.07632236]
[1771122834037,0.00044,69452.0,69440.0,0.81380596]
[1771122834038,0.02332674,69451.0,69440.0,0.00016]
[1771122834239,0.00044,69452.0,69440.0,0.00016]
[1771122834240,0.02332674,69444.0,69440.0,0.00016]
[1771122834438,0.02332674,69443.0,69437.0,0.07205746]
[1771122834647,0.02332674,69443.0,69434.0,0.0720505]
[1771122834648,0.07200162,69443.0,69434.0,0.0720505]
[1771122834945,0.02332674,69442.0,69435.0,0.07200968]
[1771122835159,0.02332674,69442.0,69439.0,0.07200564]
[1771122835446,0.02332674,69442.0,69437.0,0.07200724]
[1771122836354,0.02332674,69442.0,69439.0,0.07200493]
[1771122836788,0.07199583,69449.0,69441.0,0.07200254]
[1771122837180,0.07199676,69448.0,69441.0,0.07200254]
[1771122837412,0.02332674,69449.0,69441.0,0.07200254]
[1771122837544,0.0721544,69450.0,69442.0,0.07200253]
[1771122837744,0.0719955,69450.0,69442.0,0.07200253]
[1771122838101,0.07199443,69450.0,69443.0,0.07200148]
[1771122838654,0.07199514,69451.0,69442.0,0.07200162]
[1771122838870,0.07199548,69449.0,69442.0,0.07200162]
[1771122839757,0.07199621,69449.0,69441.0,0.0720033]
[1771122840166,0.07199654,69448.0,69441.0,0.0720033]
[1771122840365,0.07199921,69446.0,69440.0,0.00016]
[1771122840588,0.07199978,69445.0,69440.0,0.00016]
[1771122840911,0.02332674,69445.0,69439.0,5e-05]
[1771122841059,0.02332674,69445.0,69439.0,0.07200484]
[1771122841260,0.02332674,69445.0,69438.0,0.07204634]
[1771122841261,0.09532649,69445.0,69438.0,0.07204634]
[1771122841499,0.15689271,69447.0,69438.0,0.07200634]
[1771122841888,0.07199823,69447.0,69438.0,0.07200634]
[1771122842276,0.0720002,69445.0,69437.0,0.07200718]
[1771122842474,0.0720002,69445.0,69435.0,0.07200915]
[1771122842475,0.07199735,69447.0,69440.0,0.002]
[1771122842673,0.07200357,69441.0,69434.0,5e-05]
[1771122842863,0.0720046,69440.0,69434.0,5e-05]
[1771122843068,0.0720046,69440.0,69434.0,0.00025]
[1771122843274,0.07205476,69440.0,69434.0,0.00025]
[1771122843723,0.07205476,69440.0,69434.0,8.354e-05]
[1771122844728,0.07205476,69440.0,69436.0,0.0720082]
[1771122844729,5.016e-05,69440.0,69436.0,0.0720082]
[1771122846741,5.016e-05,69440.0,69437.0,0.0720077]
[1771122847163,5.016e-05,69440.0,69439.0,0.07200564]
[1771122847378,5.016e-05,69440.0,69434.0,8.354e-05]
[1771122847901,5.016e-05,69440.0,69434.0,0.07209429]
[1771122848105,5.016e-05,69440.0,69437.0,0.001]
[1771122848395,4e-05,69438.0,69437.0,0.001]
[1771122848545,4e-05,69438.0,69434.0,8.354e-05]
[1771122848945,4e-05,69438.0,69430.0,0.00012]
[1771122849198,0.08489448,69436.0,69420.0,0.43600006]
[1771122849434,4e-05,69438.0,69420.0,0.00012]
[1771122849638,0.08489448,69424.0,69417.0,0.07202826]
[1771122849812,0.07202109,69425.0,69414.0,0.0002491]
[1771122849958,0.0953452,69427.0,69416.0,0.07202848]
[1771122849959,0.07201988,69426.0,69416.0,0.07202848]
[1771122850163,0.07201988,69426.0,69417.0,0.0720276]
[1771122850516,0.07201617,69429.0,69422.0,0.07202316]
[1771122850768,0.07201699,69429.0,69422.0,0.0002]
[1771122851126,0.07201741,69428.0,69422.0,0.0002]
[1771122851328,0.00012,69430.0,69422.0,0.0002]
[1771122851749,0.07202131,69424.0,69422.0,0.0002]
[1771122851958,0.07201851,69427.0,69422.0,0.0002]
[1771122852289,0.07202224,69423.0,69422.0,0.0002]
[1771122852422,0.07201809,69427.0,69422.0,0.0002]
[1771122852626,0.0720193,69426.0,69422.0,0.0002]
[1771122853066,0.07202026,69425.0,69422.0,0.0002]
[1771122854076,0.09546194,69430.0,69422.0,0.07222292]
[1771122854279,0.09546179,69430.0,69422.0,0.0002]
[1771122855061,0.00012,69430.0,69423.0,0.02374547]
[1771122855629,0.16436,69443.0,69429.0,0.09576044]
[1771122855837,4e-05,69444.0,69422.0,0.0002]
[1771122855838,4e-05,69444.0,69437.0,0.07200771]
[1771122855994,0.07200669,69438.0,69430.0,0.07201468]
[1771122856198,0.07200585,69439.0,69431.0,0.07201392]
[1771122856383,0.07204278,69442.0,69429.0,0.02374547]
[1771122856588,0.0720039,69441.0,69433.0,0.0720109]
[1771122856764,4e-05,69442.0,69439.0,0.07200564]
[1771122857183,0.08368189,69439.0,69430.0,0.00012]
[1771122857438,0.28805886,69431.0,69420.0,0.00012]
[1771122857583,0.07201497,69430.0,69422.0,0.00025016]
[1771122857787,0.00012,69430.0,69416.0,0.02374547]
[1771122858109,0.00012,69430.0,69416.0,0.02387621]
[1771122858320,0.07201697,69429.0,69416.0,0.02387621]
[1771122858526,0.07201718,69428.0,69420.0,0.07202445]
[1771122858690,0.07201718,69428.0,69421.0,0.07202419]
[1771122859159,0.07201619,69429.0,69421.0,0.07202419]
[1771122859522,0.00012,69430.0,69425.0,0.07201931]
[1771122859851,0.00012,69430.0,69429.0,0.07201601]
[1771122859989,0.00012,69430.0,69419.0,0.43606404]
[1771122860188,0.00012,69430.0,69423.0,0.09576771]
[1771122860395,0.00012,69430.0,69426.0,0.07201902]
[1771122860593,0.00012,69430.0,69423.0,0.02374547]
[1771122860843,0.00012,69430.0,69425.0,0.07201967]
[1771122861056,0.00012,69430.0,69429.0,0.002]
[1771122861259,0.00012,69430.0,69425.0,0.07201967]
[1771122861628,0.00012,69430.0,69426.0,0.005]
[1771122862217,0.00012,69430.0,69426.0,0.07701904]
[1771122862451,0.00012,69430.0,69426.0,0.10076451]
[1771122862668,0.00012,69430.0,69426.0,0.005]
[1771122862859,0.00012,69430.0,69429.0,0.07201601]
[1771122863033,0.00012,69430.0,69426.0,0.0720186]
[1771122863224,0.00016,69430.0,69429.0,0.004]
[1771122863401,0.00016,69430.0,69426.0,0.0720186]
[1771122863755,0.00016,69430.0,69426.0,0.0760186]
[1771122864157,0.00016,69430.0,69426.0,0.0720186]
[1771122864319,0.00016,69430.0,69429.0,0.004]
[1771122864657,0.00016,69430.0,69425.0,0.07201983]
[1771122865216,0.00016,69430.0,69425.0,0.0957653]
[1771122865416,0.00016,69430.0,69427.0,0.0720177]
[1771122865781,4e-05,69434.0,69433.0,0.07201186]
[1771122865973,0.00056,69440.0,69437.0,0.07200771]
[1771122866959,0.00056,69440.0,69436.0,0.0720084]
[1771122867159,0.00056,69440.0,69437.0,0.005]
[1771122867365,0.00056,69440.0,69436.0,0.0720084]
[1771122867726,0.00056,69440.0,69437.0,0.002]
[1771122868872,0.00056,69440.0,69436.0,0.0720084]
[1771122869954,0.00056,69440.0,69437.0,0.07200771]
[1771122870301,0.00056,69440.0,69439.0,0.07200564]
[1771122870502,4e-05,69442.0,69439.0,0.07200564]
[1771122870742,4e-05,69442.0,69433.0,0.08434391]
[1771122870743,4e-05,69442.0,69440.0,0.02374547]
[1771122870944,0.00044,69444.0,69441.0,0.09574904]
[1771122871145,0.00044,69444.0,69442.0,0.07200218]
[1771122871353,0.00044,69444.0,69442.0,0.02374547]
[1771122871909,0.00044,69444.0,69442.0,0.09574785]
[1771122872109,0.00044,69444.0,69442.0,0.02374547]
[1771122872380,0.00029597,69444.0,69442.0,0.02374547]
[1771122872882,0.0004,69447.0,69439.0,0.28802014]
[1771122873088,0.00012,69450.0,69448.0,0.09540809]
[1771122873234,0.00012,69450.0,69448.0,0.09524167]
[1771122873439,0.00012,69460.0,69454.0,0.07198927]
[1771122873645,0.00025086,69460.0,69450.0,0.02374547]
[1771122873843,0.00025086,69460.0,69459.0,0.07198491]
[1771122874064,0.0002941,69463.0,69458.0,0.07198531]
[1771122874264,0.0006853,69463.0,69462.0,0.0719818]
[1771122874469,5e-05,69471.0,69462.0,0.0719818]
[1771122874678,5e-05,69471.0,69455.0,0.02374547]
[1771122874679,5e-05,69471.0,69469.0,0.07197454]
[1771122874868,0.0004,69473.0,69469.0,0.0004362]
[1771122875149,0.0004,69473.0,69469.0,0.07241074]
[1771122875392,0.0002491,69477.0,69473.0,0.07196958]
[1771122875564,0.0002491,69477.0,69473.0,0.07146958]
[1771122876268,0.0002491,69477.0,69470.0,0.07197351]
[1771122876455,0.0002491,69477.0,69469.0,0.0004362]
[1771122877148,0.0002491,69477.0,69471.0,0.07197235]
[1771122878035,0.0002491,69477.0,69469.0,0.07240974]
[1771122878233,4e-05,69470.0,69469.0,0.07240974]
[1771122878443,4e-05,69470.0,69469.0,0.09615521]
[1771122878754,4e-05,69470.0,69469.0,0.18049912]
[1771122878939,4e-05,69470.0,69469.0,0.09615521]
[1771122879351,4e-05,69470.0,69469.0,0.09715521]
[1771122880523,4e-05,69470.0,69469.0,0.09615521]
[1771122880899,4e-05,69470.0,69469.0,0.18161844]
[1771122881104,4e-05,69470.0,69469.0,0.09715521]
[1771122881357,4e-05,69470.0,69469.0,0.09615521]
[1771122881775,4e-05,69470.0,69469.0,0.09715521]
[1771122882387,4e-05,69470.0,69469.0,0.09615521]
[1771122883177,4e-05,69470.0,69469.0,0.09715521]
[1771122883384,4e-05,69472.0,69471.0,0.09482217]
[1771122885501,0.0002107,69472.0,69471.0,0.09482217]
[1771122885702,0.0002107,69472.0,69471.0,0.09582217]
[1771122886679,0.0006107,69472.0,69471.0,0.09582217]
[1771122886884,0.0006107,69472.0,69471.0,0.09482217]
[1771122887085,4e-05,69474.0,69473.0,0.0719704]
[1771122887306,4e-05,69474.0,69473.0,0.0948201]
[1771122888748,4e-05,69474.0,69469.0,0.0232859]
[1771122889407,4e-05,69474.0,69470.0,0.07197351]
[1771122891117,4e-05,69474.0,69471.0,0.07197238]
[1771122891453,4e-05,69474.0,69472.0,0.07197118]
[1771122892249,4e-05,69474.0,69471.0,0.07197214]
[1771122892566,4e-05,69474.0,69470.0,0.07197282]
[1771122892868,4e-05,69474.0,69472.0,0.07197104]
[1771122893076,4e-05,69474.0,69469.0,0.09525965]
[1771122893281,4e-05,69474.0,69470.0,0.07197276]
[1771122893630,4e-05,69474.0,69471.0,0.07197238]
[1771122895998,4e-05,69474.0,69472.0,0.07197139]